[Event "Croatian-ch Youth U15 2022"]
[Site "Trogir"]
[Date "2022.06.26"]
[Round "8.5"]
[White "Rautner, Fran"]
[Black "Frouth, Vibor"]
[Result "1/2-1/2"]
[ECO "C92"]
[WhiteElo "1753"]
[BlackElo "1493"]
[Annotator "NA RC"]
[PlyCount "97"]
[EventDate "2022.06.22"]
[EventType "swiss"]
[EventCountry "CRO"]
[SourceTitle "playchess.com"]
[Source "ChessBase"]
[SourceQuality "1"]
[TimeControl "5400+30"]

1. e4 {[%emt 0:00:08]} e5 {[%emt 0:00:55]} 2. Nf3 {[%emt 0:00:02]} Nc6 {[%emt 0:00:30]} 3. Bb5 {[%emt 0:00:07]} a6 {[%emt 0:00:07]} 4. Ba4 {[%emt 0:00:04]} Nf6 {[%emt 0:00:31]} 5. O-O {[%emt 0:00:49]} Be7 {[%emt 0:00:07]} 6. Re1 {[%emt 0:00:55]} b5 {[%emt 0:00:34]} 7. Bb3 {[%emt 0:00:05]} d6 {[%emt 0:00:14]} 8. c3 {[%emt 0:00:18]} O-O {[%emt 0:00:16]} 9. h3 {[%emt 0:00:05]} Be6 {[%emt 0:00:12]} 10. d4 {[%emt 0:05:20]} Bxb3 {[%emt 0:00:12]} 11. Qxb3 {[%emt 0:00:47]} exd4 {[%emt 0:00:12]} 12. Nxd4 {[%emt 0:05:53]} Nxd4 {[%emt 0:00:08]} 13. cxd4 {[%emt 0:00:03]} c5 {[%emt 0:02:48]} 14. e5 {[%emt 0:18:17]} dxe5 {[%emt 0:04:21]} 15. dxe5 {[%emt 0:00:43]} Nd7 {[%emt 0:01:21]} 16. Qg3 {[%emt 0:05:10]} Re8 {[%emt 0:04:53]} 17. Bh6 {[%emt 0:10:38]} Bf8 {[%emt 0:00:55]} 18. Nc3 {[%emt 0:01:23]} Kh8 {[%emt 0:01:26]} 19. Bf4 {[%emt 0:01:48]} Re6 {[%emt 0:04:07]} 20. Rad1 {[%emt 0:03:25]} Qc7 {[%emt 0:01:30]} 21. Ne4 {[%emt 0:08:11]} h6 {[%emt 0:00:58]} 22. Nd6 {[%emt 0:03:32]} Nb6 {[%emt 0:05:11]} 23. Nf5 {[%emt 0:06:24]} Rae8 {[%emt 0:06:41]} 24. Re2 {[%emt 0:07:16]} Nc4 {[%emt 0:05:24]} 25. b3 {[%emt 0:02:06]} Nxe5 {[%emt 0:01:17]} 26. Rde1 {[%emt 0:00:25]} f6 {[%emt 0:00:30]} 27. Nh4 {[%emt 0:05:04]} Qf7 {[%emt 0:07:24]} 28. Bxe5 {[%emt 0:06:55]} fxe5 {[%emt 0:00:14]} 29. Re4 {[%emt 0:02:33]} Be7 {[%emt 0:02:57]} 30. Nf3 {[%emt 0:00:41]} Bf6 {[%emt 0:00:46]} 31. Qg4 {[%emt 0:02:01]} Qe7 {[%emt 0:02:01]} 32. Qf5 {[%emt 0:00:24]} Qd6 {[%emt 0:00:41]} 33. h4 {[%emt 0:01:11]} Rf8 {[%emt 0:02:33]} 34. Qh5 {[%emt 0:00:24]} Kh7 {[%emt 0:03:25]} 35. Ng5+ {[%emt 0:00:30]} Bxg5 {[%emt 0:00:30]} 36. hxg5 {[%emt 0:00:30]} Qe7 {[%emt 0:00:30]} 37. R1e2 {[%emt 0:00:30]} Qxg5 {[%emt 0:00:30]} 38. Qxg5 {[%emt 0:00:30]} hxg5 {[%emt 0:00:30]} 39. Rxe5 {[%emt 0:02:17]} Rxe5 {[%emt 0:02:03]} 40. Rxe5 {[%emt 0:00:30]} Rc8 {[%emt 0:00:30]} 41. Rxg5 {[%emt 0:00:30]} c4 {[%emt 0:00:30]} 42. bxc4 {[%emt 0:00:30]} bxc4 {[%emt 0:00:30]} 43. Rd5 {[%emt 0:00:30]} c3 {[%emt 0:00:30]} 44. Rd1 {[%emt 0:00:30]} Kg6 {[%emt 0:00:30]} 45. Kf1 {[%emt 0:00:30]} Rc5 {[%emt 0:00:30]} 46. Rc1 {[%emt 0:00:30]} Kf5 {[%emt 0:00:30]} 47. Ke2 {[%emt 0:00:30]} Ke4 {[%emt 0:00:30]} 48. Rc2 {[%emt 0:00:30]} g5 {[%emt 0:00:30]} 49. Rc1 {[%emt 0:00:30]} 1/2-1/2

[Event "Croatian-ch Youth U15 2022"]
[Site "Trogir"]
[Date "2022.06.26"]
[Round "8.6"]
[White "Jakovic, Roko"]
[Black "Mrkic, Simun"]
[Result "1-0"]
[ECO "E71"]
[WhiteElo "1944"]
[BlackElo "1557"]
[Annotator "NA RC"]
[PlyCount "51"]
[EventDate "2022.06.22"]
[EventType "swiss"]
[EventCountry "CRO"]
[SourceTitle "playchess.com"]
[Source "ChessBase"]
[SourceQuality "1"]
[TimeControl "5400+30"]

1. d4 {[%emt 0:00:01]} Nf6 {[%emt 0:00:08]} 2. c4 {[%emt 0:00:05]} g6 {[%emt 0:00:05]} 3. Nc3 {[%emt 0:00:05]} Bg7 {[%emt 0:00:04]} 4. e4 {[%emt 0:00:04]} d6 {[%emt 0:00:03]} 5. h3 {[%emt 0:02:07]} O-O {[%emt 0:00:50]} 6. Be3 {[%emt 0:00:03]} e5 {[%emt 0:00:29]} 7. d5 {[%emt 0:00:08]} a5 {[%emt 0:00:26]} 8. g4 {[%emt 0:00:06]} Na6 {[%emt 0:00:34]} 9. Nge2 {[%emt 0:00:05]} Nc5 {[%emt 0:03:16]} 10. Ng3 {[%emt 0:00:07]} Bd7 {[%emt 0:03:11]} 11. Qd2 {[%emt 0:01:01]} a4 {[%emt 0:01:51]} 12. f3 {[%emt 0:02:44]} h5 {[%emt 0:04:00]} 13. Bg5 {[%emt 0:04:59]} Qe8 {[%emt 0:08:58]} 14. gxh5 {[%emt 0:05:01]} Nxh5 {[%emt 0:03:09]} 15. Nxh5 {[%emt 0:00:08]} gxh5 {[%emt 0:00:05]} 16. Bh6 {[%emt 0:08:32]} f6 {[%emt 0:02:31]} 17. Rg1 {[%emt 0:09:41]} Rf7 {[%emt 0:00:17]} 18. Qg2 {[%emt 0:00:54]} Qe7 {[%emt 0:00:18]} 19. Qg6 {[%emt 0:05:28]} c6 {[%emt 0:19:01]} 20. O-O-O {[%emt 0:04:18]} a3 {[%emt 0:03:37]} 21. b3 {[%emt 0:02:36]} b5 {[%emt 0:01:03]} 22. dxc6 {[%emt 0:10:06]} Bxc6 {[%emt 0:01:02]} 23. cxb5 {[%emt 0:00:58]} Bb7 {[%emt 0:01:51]} 24. Bc4 {[%emt 0:01:21]} Ne6 {[%emt 0:00:21]} 25. Bxe6 {[%emt 0:01:03]} Qxe6 {[%emt 0:00:01]} 26. Bxg7 {[%emt 0:00:08]} 1-0

[Event "Croatian-ch Youth U15 2022"]
[Site "Trogir"]
[Date "2022.06.26"]
[Round "8.7"]
[White "Gal, Andrej"]
[Black "Volic, Duje"]
[Result "1-0"]
[ECO "D36"]
[WhiteElo "1874"]
[BlackElo "1387"]
[Annotator "NA RC"]
[PlyCount "93"]
[EventDate "2022.06.22"]
[EventType "swiss"]
[EventCountry "CRO"]
[SourceTitle "playchess.com"]
[Source "ChessBase"]
[SourceQuality "1"]
[TimeControl "5400+30"]

1. d4 {[%emt 0:00:09]} d5 {[%emt 0:00:08]} 2. c4 {[%emt 0:00:00]} e6 {[%emt 0:00:17]} 3. Nc3 {[%emt 0:00:04]} Nf6 {[%emt 0:00:35]} 4. cxd5 {[%emt 0:00:07]} exd5 {[%emt 0:00:13]} 5. Bg5 {[%emt 0:00:06]} Nbd7 {[%emt 0:00:51]} 6. e3 {[%emt 0:00:11]} Be7 {[%emt 0:00:25]} 7. Bd3 {[%emt 0:00:13]} O-O {[%emt 0:00:44]} 8. Nge2 {[%emt 0:00:29]} Re8 {[%emt 0:00:31]} 9. Qc2 {[%emt 0:00:20]} c6 {[%emt 0:00:23]} 10. O-O {[%emt 0:00:38]} h6 {[%emt 0:00:38]} 11. Bh4 {[%emt 0:00:10]} Ne4 {[%emt 0:02:05]} 12. Bxe7 {[%emt 0:00:08]} Qxe7 {[%emt 0:00:11]} 13. Rae1 {[%emt 0:00:22]} Ndf6 {[%emt 0:03:58]} 14. f3 {[%emt 0:04:47]} Nxc3 {[%emt 0:02:32]} 15. Nxc3 {[%emt 0:00:02]} Be6 {[%emt 0:04:01]} 16. a3 {[%emt 0:08:24]} Rad8 {[%emt 0:05:24]} 17. Kh1 {[%emt 0:02:26]} c5 {[%emt 0:16:31]} 18. dxc5 {[%emt 0:03:03]} Qxc5 {[%emt 0:00:30]} 19. Nb5 {[%emt 0:01:08]} Qxc2 {[%emt 0:02:07]} 20. Bxc2 {[%emt 0:00:05]} a6 {[%emt 0:02:04]} 21. Nd4 {[%emt 0:00:31]} Rc8 {[%emt 0:02:21]} 22. Rc1 {[%emt 0:02:15]} g6 {[%emt 0:04:31]} 23. Kg1 {[%emt 0:05:52]} Kg7 {[%emt 0:05:51]} 24. Kf2 {[%emt 0:02:50]} Nd7 {[%emt 0:02:05]} 25. Ba4 {[%emt 0:05:31]} b5 {[%emt 0:10:14]} 26. Bc2 {[%emt 0:01:29]} Ne5 {[%emt 0:01:14]} 27. b3 {[%emt 0:01:03]} Nc6 {[%emt 0:01:09]} 28. Bd3 {[%emt 0:05:34]} Nxd4 {[%emt 0:01:32]} 29. exd4 {[%emt 0:00:11]} Bd7 {[%emt 0:01:47]} 30. Rc5 {[%emt 0:04:00]} Rxc5 {[%emt 0:00:26]} 31. dxc5 {[%emt 0:00:03]} Bc6 {[%emt 0:01:55]} 32. Re1 {[%emt 0:07:02]} Rxe1 {[%emt 0:00:19]} 33. Kxe1 {[%emt 0:00:03]} Kf6 {[%emt 0:00:10]} 34. Kd2 {[%emt 0:03:02]} Ke5 {[%emt 0:01:48]} 35. Ke3 {[%emt 0:13:47]} g5 {[%emt 0:00:56]} 36. g3 {[%emt 0:02:33]} d4+ {[%emt 0:01:41]} 37. Ke2 {[%emt 0:00:25]} a5 {[%emt 0:00:56]} 38. Be4 {[%emt 0:02:30]} b4 {[%emt 0:06:31]} 39. axb4 {[%emt 0:01:02]} Bb5+ {[%emt 0:01:17]} 40. Bd3 {[%emt 0:00:26]} Bxd3+ {[%emt 0:00:58]} 41. Kxd3 {[%emt 0:00:15]} axb4 {[%emt 0:00:17]} 42. c6 {[%emt 0:01:00]} Kd6 {[%emt 0:00:30]} 43. Kxd4 {[%emt 0:00:15]} Kxc6 {[%emt 0:00:11]} 44. Kc4 {[%emt 0:00:24]} f5 {[%emt 0:00:18]} 45. Kxb4 {[%emt 0:00:10]} f4 {[%emt 0:00:22]} 46. gxf4 {[%emt 0:00:48]} gxf4 {[%emt 0:00:24]} 47. Ka5 {[%emt 0:00:04]} 1-0

[Event "Croatian-ch Youth U15 2022"]
[Site "Trogir"]
[Date "2022.06.26"]
[Round "8.8"]
[White "Tomljanovic, Ivano"]
[Black "Sokcevic, Petar"]
[Result "1-0"]
[ECO "C02"]
[WhiteElo "1844"]
[BlackElo "1368"]
[Annotator "NA RC"]
[PlyCount "71"]
[EventDate "2022.06.22"]
[EventType "swiss"]
[EventCountry "CRO"]
[SourceTitle "playchess.com"]
[Source "ChessBase"]
[SourceQuality "1"]
[TimeControl "5400+30"]

1. d4 {[%emt 0:00:05]} e6 {[%emt 0:00:06]} 2. e4 {[%emt 0:00:19]} d5 {[%emt 0:00:22]} 3. e5 {[%emt 0:00:15]} Nc6 {[%emt 0:00:10]} 4. c3 {[%emt 0:00:26]} f6 {[%emt 0:00:32]} 5. exf6 {[%emt 0:03:53]} Nxf6 {[%emt 0:00:08]} 6. Nf3 {[%emt 0:00:11]} Bd6 {[%emt 0:00:46]} 7. Bd3 {[%emt 0:00:31]} O-O {[%emt 0:00:17]} 8. Be3 {[%emt 0:04:17]} e5 {[%emt 0:03:34]} 9. dxe5 {[%emt 0:00:59]} Nxe5 {[%emt 0:01:44]} 10. Nxe5 {[%emt 0:00:24]} Bxe5 {[%emt 0:00:09]} 11. Na3 {[%emt 0:05:28]} Ng4 {[%emt 0:01:43]} 12. g3 {[%emt 0:09:25]} Nxe3 {[%emt 0:04:57]} 13. fxe3 {[%emt 0:01:28]} Qg5 {[%emt 0:01:23]} 14. Nc2 {[%emt 0:06:13]} Qf6 {[%emt 0:14:44]} 15. Qd2 {[%emt 0:03:01]} Qh6 {[%emt 0:03:21]} 16. O-O-O {[%emt 0:01:26]} Bg4 {[%emt 0:02:54]} 17. Be2 {[%emt 0:00:56]} Bxe2 {[%emt 0:01:02]} 18. Qxe2 {[%emt 0:00:16]} c6 {[%emt 0:00:20]} 19. Kb1 {[%emt 0:01:28]} Rab8 {[%emt 0:01:48]} 20. e4 {[%emt 0:04:00]} dxe4 {[%emt 0:02:15]} 21. Qxe4 {[%emt 0:00:18]} Qf6 {[%emt 0:02:28]} 22. Ne3 {[%emt 0:01:54]} Rfe8 {[%emt 0:06:12]} 23. Rhf1 {[%emt 0:02:00]} Qg6 {[%emt 0:02:46]} 24. Nf5 {[%emt 0:02:24]} Bf6 {[%emt 0:01:15]} 25. Qc4+ {[%emt 0:01:15]} Kh8 {[%emt 0:00:55]} 26. Ka1 {[%emt 0:00:58]} Rbd8 {[%emt 0:01:42]} 27. Nd6 {[%emt 0:01:02]} Rd7 {[%emt 0:10:02]} 28. Nxe8 {[%emt 0:01:24]} Qxe8 {[%emt 0:00:07]} 29. Rxd7 {[%emt 0:01:11]} Qxd7 {[%emt 0:00:09]} 30. a3 {[%emt 0:00:35]} Qd2 {[%emt 0:01:47]} 31. g4 {[%emt 0:01:26]} Qxh2 {[%emt 0:01:54]} 32. g5 {[%emt 0:00:15]} Be7 {[%emt 0:00:05]} 33. Qf7 {[%emt 0:00:37]} Qd6 {[%emt 0:01:08]} 34. Qe8+ {[%emt 0:00:12]} Bf8 {[%emt 0:00:13]} 35. Qxf8+ {[%emt 0:00:13]} Qxf8 {[%emt 0:00:06]} 36. Rxf8# {[%emt 0:00:06]} 1-0

[Event "Croatian-ch Youth U15 2022"]
[Site "Trogir"]
[Date "2022.06.26"]
[Round "8.10"]
[White "Friscic, Laura"]
[Black "Karij, Petra"]
[Result "1/2-1/2"]
[ECO "D32"]
[WhiteElo "1106"]
[BlackElo "1433"]
[Annotator "NA RC"]
[PlyCount "64"]
[EventDate "2022.06.22"]
[EventType "swiss"]
[EventCountry "CRO"]
[SourceTitle "playchess.com"]
[Source "ChessBase"]
[SourceQuality "1"]
[TimeControl "5400+30"]

1. c4 {[%emt 0:00:07]} e6 {[%emt 0:00:10]} 2. Nc3 {[%emt 0:00:19]} d5 {[%emt 0:00:20]} 3. cxd5 {[%emt 0:04:59]} exd5 {[%emt 0:00:36]} 4. Nf3 {[%emt 0:03:00]} c5 {[%emt 0:03:58]} 5. d4 {[%emt 0:01:05]} Nc6 {[%emt 0:00:54]} 6. dxc5 {[%emt 0:01:18]} d4 {[%emt 0:00:39]} 7. Na4 {[%emt 0:02:39]} Bxc5 {[%emt 0:01:36]} 8. Nxc5 {[%emt 0:03:55]} Qa5+ {[%emt 0:00:21]} 9. Bd2 {[%emt 0:00:15]} Qxc5 {[%emt 0:00:23]} 10. g3 {[%emt 0:01:17]} Nf6 {[%emt 0:01:17]} 11. Bg2 {[%emt 0:02:45]} O-O {[%emt 0:00:10]} 12. O-O {[%emt 0:00:27]} Bf5 {[%emt 0:03:19]} 13. Qb3 {[%emt 0:01:08]} Qe7 {[%emt 0:04:49]} 14. Qc4 {[%emt 0:03:40]} Rfd8 {[%emt 0:04:53]} 15. Rfd1 {[%emt 0:09:37]} Rac8 {[%emt 0:04:51]} 16. e3 {[%emt 0:03:26]} Ne5 {[%emt 0:03:52]} 17. Qf1 {[%emt 0:04:47]} Bd3 {[%emt 0:01:35]} 18. Qe1 {[%emt 0:00:11]} Bc2 {[%emt 0:00:11]} 19. Bb4 {[%emt 0:05:59]} Nxf3+ {[%emt 0:05:20]} 20. Bxf3 {[%emt 0:00:18]} Qe5 {[%emt 0:03:07]} 21. exd4 {[%emt 0:05:33]} Qf5 {[%emt 0:07:52]} 22. Bxb7 {[%emt 0:10:20]} Re8 {[%emt 0:03:42]} 23. Qd2 {[%emt 0:03:17]} Rb8 {[%emt 0:10:00]} 24. Rdc1 {[%emt 0:01:05]} Rxb7 {[%emt 0:00:55]} 25. Rxc2 {[%emt 0:01:21]} Rxb4 {[%emt 0:00:17]} 26. Rc5 {[%emt 0:00:39]} Ne4 {[%emt 0:02:21]} 27. Qxb4 {[%emt 0:00:54]} Qxf2+ {[%emt 0:00:42]} 28. Kh1 {[%emt 0:01:02]} Qf3+ {[%emt 0:02:47]} 29. Kg1 {[%emt 0:00:32]} Qe3+ {[%emt 0:01:26]} 30. Kh1 {[%emt 0:04:10]} Qf3+ {[%emt 0:02:34]} 31. Kg1 {[%emt 0:00:22]} Qe3+ {[%emt 0:20:55]} 32. Kh1 {[%emt 0:00:11]} Qf3+ {[%emt 0:00:11]} 1/2-1/2

[Event "Croatian-ch Youth U15 2022"]
[Site "Trogir"]
[Date "2022.06.26"]
[Round "8.11"]
[White "Zovko, Josipa"]
[Black "Lukinovic, Laura"]
[Result "1-0"]
[ECO "D03"]
[WhiteElo "1419"]
[BlackElo "1164"]
[Annotator "NA RC"]
[PlyCount "77"]
[EventDate "2022.06.22"]
[EventType "swiss"]
[EventCountry "CRO"]
[SourceTitle "playchess.com"]
[Source "ChessBase"]
[SourceQuality "1"]
[TimeControl "5400+30"]

1. Nf3 {[%emt 0:05:55]} d5 {[%emt 0:01:53]} 2. d4 {[%emt 0:00:27]} Nf6 {[%emt 0:02:29]} 3. Bg5 {[%emt 0:00:14]} e6 {[%emt 0:03:44]} 4. e3 {[%emt 0:00:42]} c5 {[%emt 0:01:14]} 5. c3 {[%emt 0:01:37]} Nc6 {[%emt 0:04:57]} 6. Bd3 {[%emt 0:06:47]} c4 {[%emt 0:02:09]} 7. Be2 {[%emt 0:05:06]} h6 {[%emt 0:05:38]} 8. Bh4 {[%emt 0:01:32]} g5 {[%emt 0:05:41]} 9. Bg3 {[%emt 0:00:58]} Ne4 {[%emt 0:02:39]} 10. Be5 {[%emt 0:10:20]} f6 {[%emt 0:02:32]} 11. Bg3 {[%emt 0:01:08]} h5 {[%emt 0:02:33]} 12. h3 {[%emt 0:07:27]} Nxg3 {[%emt 0:00:07]} 13. fxg3 {[%emt 0:00:04]} Bd6 {[%emt 0:00:23]} 14. Qc2 {[%emt 0:07:53]} Bxg3+ {[%emt 0:01:55]} 15. Kd1 {[%emt 0:02:54]} f5 {[%emt 0:03:57]} 16. b3 {[%emt 0:05:25]} cxb3 {[%emt 0:10:02]} 17. Qxb3 {[%emt 0:04:18]} a6 {[%emt 0:02:34]} 18. Rf1 {[%emt 0:06:04]} g4 {[%emt 0:01:59]} 19. hxg4 {[%emt 0:00:45]} hxg4 {[%emt 0:00:05]} 20. Ne1 {[%emt 0:01:23]} Rh2 {[%emt 0:03:12]} 21. Qa3 {[%emt 0:04:51]} Bxe1 {[%emt 0:06:32]} 22. Rxe1 {[%emt 0:00:35]} Rxg2 {[%emt 0:04:01]} 23. Rh1 {[%emt 0:01:17]} Qe7 {[%emt 0:00:37]} 24. Qb3 {[%emt 0:05:14]} Rg3 {[%emt 0:03:14]} 25. Qb6 {[%emt 0:02:03]} Rh3 {[%emt 0:02:29]} 26. Rxh3 {[%emt 0:03:01]} gxh3 {[%emt 0:00:08]} 27. Qb2 {[%emt 0:00:14]} Qg5 {[%emt 0:02:02]} 28. Kd2 {[%emt 0:04:15]} h2 {[%emt 0:02:32]} 29. Bf3 {[%emt 0:01:30]} Qh4 {[%emt 0:00:38]} 30. Na3 {[%emt 0:01:50]} Qf2+ {[%emt 0:00:59]} 31. Be2 {[%emt 0:00:11]} Qg2 {[%emt 0:01:30]} 32. Qb1 {[%emt 0:02:42]} b5 {[%emt 0:01:42]} 33. Qf1 {[%emt 0:02:48]} Qxf1 {[%emt 0:00:26]} 34. Rxf1 {[%emt 0:00:04]} b4 {[%emt 0:00:14]} 35. Nc2 {[%emt 0:00:58]} bxc3+ {[%emt 0:00:16]} 36. Kxc3 {[%emt 0:00:06]} a5 {[%emt 0:01:19]} 37. Rh1 {[%emt 0:01:55]} Ba6 {[%emt 0:01:21]} 38. Rxh2 {[%emt 0:00:41]} Bxe2 {[%emt 0:00:43]} 39. Rh8+ {[%emt 0:00:07]} 1-0

[Event "Croatian-ch Youth U15 2022"]
[Site "Trogir"]
[Date "2022.06.27"]
[Round "9.1"]
[White "Franc, Borna"]
[Black "Colev, Ivor"]
[Result "1-0"]
[ECO "B30"]
[WhiteElo "2032"]
[BlackElo "1984"]
[Annotator "RC"]
[PlyCount "51"]
[EventDate "2022.06.22"]
[EventType "swiss"]
[EventCountry "CRO"]
[SourceTitle "playchess.com"]
[Source "ChessBase"]
[SourceQuality "1"]
[TimeControl "5400+30"]

1. e4 {[%emt 0:00:02]} c5 {[%emt 0:00:02]} 2. Nf3 {[%emt 0:00:02]} d6 {[%emt 0:00:04]} 3. g3 {[%emt 0:00:04]} Nf6 {[%emt 0:00:23]} 4. d3 {[%emt 0:00:07]} e6 {[%emt 0:00:05]} 5. Bg2 {[%emt 0:00:03]} Be7 {[%emt 0:00:04]} 6. O-O {[%emt 0:00:06]} O-O {[%emt 0:00:02]} 7. c3 {[%emt 0:00:07]} Nc6 {[%emt 0:00:12]} 8. Re1 {[%emt 0:00:05]} Bd7 {[%emt 0:04:41]} 9. d4 {[%emt 0:01:33]} cxd4 {[%emt 0:00:06]} 10. cxd4 {[%emt 0:00:03]} d5 {[%emt 0:00:23]} 11. exd5 {[%emt 0:03:48]} Nxd5 {[%emt 0:00:11]} 12. Nc3 {[%emt 0:00:29]} Bb4 {[%emt 0:19:04]} 13. Bd2 {[%emt 0:02:36]} Nce7 {[%emt 0:03:17]} 14. Nxd5 {[%emt 0:01:45]} Nxd5 {[%emt 0:00:09]} 15. Bxb4 {[%emt 0:00:13]} Nxb4 {[%emt 0:00:06]} 16. Qb3 {[%emt 0:00:05]} Qb6 {[%emt 0:18:07]} 17. Ne5 {[%emt 0:02:45]} Bc6 {[%emt 0:02:32]} 18. Nc4 {[%emt 0:04:37]} Qxd4 {[%emt 0:16:38]} 19. Qxb4 {[%emt 0:00:13]} Bxg2 {[%emt 0:00:32]} 20. Kxg2 {[%emt 0:05:04]} f5 {[%emt 0:02:22]} 21. Rad1 {[%emt 0:01:17]} Qg4 {[%emt 0:00:43]} 22. h3 {[%emt 0:00:59]} Qg5 {[%emt 0:01:05]} 23. f4 {[%emt 0:00:30]} Qf6 {[%emt 0:02:38]} 24. Ne5 {[%emt 0:00:25]} Rfc8 {[%emt 0:00:34]} 25. Qb3 {[%emt 0:01:28]} Re8 {[%emt 0:01:30]} 26. h4 {[%emt 0:05:30]} 1-0

[Event "Croatian-ch Youth U15 2022"]
[Site "Trogir"]
[Date "2022.06.27"]
[Round "9.2"]
[White "Bunic, Emanuel"]
[Black "Grgantov, Marin"]
[Result "1/2-1/2"]
[ECO "B14"]
[WhiteElo "1941"]
[BlackElo "2081"]
[Annotator "RC"]
[PlyCount "95"]
[EventDate "2022.06.22"]
[EventType "swiss"]
[EventCountry "CRO"]
[SourceTitle "playchess.com"]
[Source "ChessBase"]
[SourceQuality "1"]
[TimeControl "5400+30"]

1. d4 {[%emt 0:00:05]} Nf6 {[%emt 0:00:05]} 2. c4 {[%emt 0:00:27]} e6 {[%emt 0:00:06]} 3. Nc3 {[%emt 0:00:15]} Bb4 {[%emt 0:00:05]} 4. e3 {[%emt 0:00:32]} O-O {[%emt 0:00:13]} 5. Nf3 {[%emt 0:00:38]} d5 {[%emt 0:00:33]} 6. Bd3 {[%emt 0:01:14]} c5 {[%emt 0:00:14]} 7. cxd5 {[%emt 0:02:08]} cxd4 {[%emt 0:07:24]} 8. exd4 {[%emt 0:04:06]} exd5 {[%emt 0:05:47]} 9. O-O {[%emt 0:03:56]} h6 {[%emt 0:05:14]} 10. Bf4 {[%emt 0:09:05]} Nc6 {[%emt 0:06:56]} 11. h3 {[%emt 0:03:07]} Be6 {[%emt 0:09:33]} 12. Bc2 {[%emt 0:05:43]} Bxc3 {[%emt 0:12:57]} 13. bxc3 {[%emt 0:00:10]} Qa5 {[%emt 0:03:34]} 14. Qd3 {[%emt 0:16:24]} Ne7 {[%emt 0:03:25]} 15. Bd6 {[%emt 0:12:24]} Bf5 {[%emt 0:08:56]} 16. Qd2 {[%emt 0:03:57]} Bxc2 {[%emt 0:00:31]} 17. Bxe7 {[%emt 0:01:17]} Bf5 {[%emt 0:05:58]} 18. Bxf8 {[%emt 0:01:56]} Rxf8 {[%emt 0:01:01]} 19. c4 {[%emt 0:05:13]} Qxd2 {[%emt 0:05:23]} 20. Nxd2 {[%emt 0:00:12]} Bd3 {[%emt 0:00:05]} 21. Rfc1 {[%emt 0:00:18]} Rd8 {[%emt 0:01:19]} 22. cxd5 {[%emt 0:03:27]} Nxd5 {[%emt 0:00:33]} 23. Nb3 {[%emt 0:00:35]} b6 {[%emt 0:01:51]} 24. Rd1 {[%emt 0:01:29]} Be2 {[%emt 0:00:57]} 25. Rd2 {[%emt 0:01:24]} Bc4 {[%emt 0:00:14]} 26. Rc1 {[%emt 0:01:01]} Ba6 {[%emt 0:00:40]} 27. a3 {[%emt 0:04:14]} Kf8 {[%emt 0:01:04]} 28. Na1 {[%emt 0:00:36]} Bb5 {[%emt 0:01:28]} 29. Kh2 {[%emt 0:03:10]} a5 {[%emt 0:02:08]} 30. Kg3 {[%emt 0:01:24]} Ba4 {[%emt 0:01:47]} 31. f3 {[%emt 0:03:09]} g6 {[%emt 0:01:19]} 32. Kf2 {[%emt 0:02:46]} Re8 {[%emt 0:01:29]} 33. Re2 {[%emt 0:02:13]} Rd8 {[%emt 0:00:20]} 34. g3 {[%emt 0:01:46]} Ne7 {[%emt 0:03:14]} 35. Rd2 {[%emt 0:00:58]} Nd5 {[%emt 0:00:31]} 36. Rb2 {[%emt 0:02:56]} Re8 {[%emt 0:01:31]} 37. Nb3 {[%emt 0:01:55]} Re3 {[%emt 0:00:40]} 38. Rcb1 {[%emt 0:00:53]} Rd3 {[%emt 0:01:28]} 39. Nd2 {[%emt 0:01:18]} Nc3 {[%emt 0:01:32]} 40. Nc4 {[%emt 0:01:01]} Nxb1 {[%emt 0:00:32]} 41. Rxb1 {[%emt 0:00:06]} Rxd4 {[%emt 0:02:02]} 42. Nxb6 {[%emt 0:00:17]} Bc6 {[%emt 0:02:56]} 43. Rc1 {[%emt 0:00:34]} Be8 {[%emt 0:00:50]} 44. Ke3 {[%emt 0:00:30]} Rd6 {[%emt 0:00:22]} 45. Nc4 {[%emt 0:00:28]} Rd5 {[%emt 0:01:44]} 46. Rb1 {[%emt 0:01:02]} Bb5 {[%emt 0:01:12]} 47. Rc1 {[%emt 0:00:42]} Be8 {[%emt 0:00:31]} 48. Ke4 {[%emt 0:00:39]} 1/2-1/2